[Event "Titled Tuesday Blitz April 18 Early 2023"]
[White "Sai Han Thiha"]
[Black "micke12a"]
[WhiteFideId "13012290"]
[WhiteElo "1954"]
[BlackElo "2323"]
[Result "0-1"]
[Round "04"]
[TimeControl "180+2"]
[Date "2023.04.18"]
[WhiteClock "0:00:25"]
[BlackClock "0:00:06"]

1. d4 {[%clk 0:03:00]}  Nf6 {[%clk 0:02:59]} 2. c4 {[%clk 0:03:01]}  g6 {[%clk 0:02:58]} 3. Nc3 {[%clk 0:03:01]}  d5 {[%clk 0:02:59]} 4. Nf3 {[%clk 0:03:02]}  Bg7 {[%clk 0:02:59]} 5. Qb3 {[%clk 0:03:02]}  dxc4 {[%clk 0:02:58]} 6. Qxc4 {[%clk 0:03:03]}  Be6 {[%clk 0:02:58]} 7. Qd3 {[%clk 0:02:40]}  c5 {[%clk 0:02:55]} 8. dxc5 {[%clk 0:02:30]}  Nbd7 {[%clk 0:02:52]} 9. Be3 {[%clk 0:02:21]}  Bf5 {[%clk 0:02:46]} 10. Qb5 {[%clk 0:02:14]}  O-O {[%clk 0:02:45]} 11. g3 {[%clk 0:02:05]}  a6 {[%clk 0:02:41]} 12. Qb4 {[%clk 0:02:04]}  Ng4 {[%clk 0:02:33]} 13. Bd2 {[%clk 0:02:01]}  Qc7 {[%clk 0:02:21]} 14. Nd5 {[%clk 0:01:42]}  Qd8 {[%clk 0:01:41]} 15. Rc1 {[%clk 0:01:14]}  Nde5 {[%clk 0:01:13]} 16. Nxe5 {[%clk 0:00:57]}  Qxd5 {[%clk 0:01:03]} 17. Nf3 {[%clk 0:00:58]}  Rfd8 {[%clk 0:00:51]} 18. Bg2 {[%clk 0:00:58]}  Ne5 {[%clk 0:00:48]} 19. Bc3 {[%clk 0:00:50]}  Be4 {[%clk 0:00:32]} 20. O-O {[%clk 0:00:42]}  Nxf3+ {[%clk 0:00:26]} 21. exf3 {[%clk 0:00:42]}  Bxf3 {[%clk 0:00:26]} 22. Bxf3 {[%clk 0:00:12]}  Qxf3 {[%clk 0:00:27]} 23. Bxg7 {[%clk 0:00:10]}  Kxg7 {[%clk 0:00:25]} 24. Rc3 {[%clk 0:00:11]}  Qc6 {[%clk 0:00:21]} 25. Re3 {[%clk 0:00:10]}  e6 {[%clk 0:00:17]} 26. Qc3+ {[%clk 0:00:10]}  f6 {[%clk 0:00:16]} 27. Rfe1 {[%clk 0:00:09]}  Re8 {[%clk 0:00:13]} 28. b4 {[%clk 0:00:08]}  a5 {[%clk 0:00:10]} 29. a3 {[%clk 0:00:08]}  axb4 {[%clk 0:00:10]} 30. axb4 {[%clk 0:00:09]}  Rac8 {[%clk 0:00:10]} 31. Qc4 {[%clk 0:00:08]}  e5 {[%clk 0:00:05]} 32. h4 {[%clk 0:00:07]}  b6 {[%clk 0:00:05]} 33. h5 {[%clk 0:00:07]}  bxc5 {[%clk 0:00:04]} 34. bxc5 {[%clk 0:00:07]}  Qxc5 {[%clk 0:00:04]} 35. Qh4 {[%clk 0:00:08]}  g5 {[%clk 0:00:04]} 36. h6+ {[%clk 0:00:07]}  Kg6 {[%clk 0:00:05]} 37. Qe4+ {[%clk 0:00:07]}  Kxh6 {[%clk 0:00:05]} 38. Kg2 {[%clk 0:00:07]}  Qc6 {[%clk 0:00:05]} 39. Rh1+ {[%clk 0:00:08]}  Kg7 {[%clk 0:00:04]} 40. Rxh7+ {[%clk 0:00:08]}  Kg8 {[%clk 0:00:04]} 41. Qxc6 {[%clk 0:00:06]}  Rxc6 {[%clk 0:00:05]} 42. Rd3 {[%clk 0:00:07]}  Kxh7 {[%clk 0:00:05]} 43. Rd7+ {[%clk 0:00:07]}  Kg6 {[%clk 0:00:06]} 44. g4 {[%clk 0:00:07]}  Rce6 {[%clk 0:00:06]} 45. Rc7 {[%clk 0:00:04]}  R6e7 {[%clk 0:00:06]} 46. Rc6 {[%clk 0:00:03]}  Kg7 {[%clk 0:00:07]} 47. Kf3 {[%clk 0:00:03]}  e4+ {[%clk 0:00:07]} 48. Ke3 {[%clk 0:00:03]}  Rd8 {[%clk 0:00:08]} 49. Rc4 {[%clk 0:00:03]}  Rd3+ {[%clk 0:00:08]} 50. Ke2 {[%clk 0:00:04]}  Rd5 {[%clk 0:00:07]} 51. Ra4 {[%clk 0:00:03]}  e3 {[%clk 0:00:07]} 52. fxe3 {[%clk 0:00:03]}  Rde5 {[%clk 0:00:08]} 53. Ra3 {[%clk 0:00:03]}  Re4 {[%clk 0:00:08]} 54. Kf3 {[%clk 0:00:04]}  Rb4 {[%clk 0:00:08]} 55. Rd3 {[%clk 0:00:04]}  Ree4 {[%clk 0:00:08]} 56. Rc3 {[%clk 0:00:05]}  Rxg4 {[%clk 0:00:07]} 57. Rc7+ {[%clk 0:00:05]}  Kg6 {[%clk 0:00:07]} 58. Rc8 {[%clk 0:00:06]}  Rh4 {[%clk 0:00:07]} 59. Rg8+ {[%clk 0:00:06]}  Kf5 {[%clk 0:00:08]} 60. Rc8 {[%clk 0:00:06]}  Rh3+ {[%clk 0:00:06]} 61. Kf2 {[%clk 0:00:07]}  Rb2+ {[%clk 0:00:04]} 62. Kg1 {[%clk 0:00:07]}  Rxe3 {[%clk 0:00:02]} 63. Rc5+ {[%clk 0:00:08]}  Re5 {[%clk 0:00:02]} 64. Rc1 {[%clk 0:00:09]}  Ree2 {[%clk 0:00:02]} 65. Rf1+ {[%clk 0:00:09]}  Kg4 {[%clk 0:00:02]} 66. Ra1 {[%clk 0:00:10]}  Rg2+ {[%clk 0:00:02]} 67. Kh1 {[%clk 0:00:11]}  Rh2+ {[%clk 0:00:02]} 68. Kg1 {[%clk 0:00:12]}  Rbg2+ {[%clk 0:00:03]} 69. Kf1 {[%clk 0:00:13]}  Rh1+ {[%clk 0:00:04]} 70. Kxg2 {[%clk 0:00:13]}  Rxa1 {[%clk 0:00:04]} 71. Kf2 {[%clk 0:00:14]}  Ra2+ {[%clk 0:00:05]} 72. Kg1 {[%clk 0:00:14]}  Kg3 {[%clk 0:00:04]} 73. Kf1 {[%clk 0:00:15]}  Rh2 {[%clk 0:00:04]} 74. Ke1 {[%clk 0:00:16]}  Rg2 {[%clk 0:00:04]} 75. Kd1 {[%clk 0:00:17]}  f5 {[%clk 0:00:04]} 76. Ke1 {[%clk 0:00:17]}  f4 {[%clk 0:00:05]} 77. Kf1 {[%clk 0:00:18]}  g4 {[%clk 0:00:06]} 78. Ke1 {[%clk 0:00:19]}  f3 {[%clk 0:00:06]} 79. Kf1 {[%clk 0:00:19]}  Ra2 {[%clk 0:00:04]} 80. Ke1 {[%clk 0:00:20]}  f2+ {[%clk 0:00:05]} 81. Kf1 {[%clk 0:00:20]}  Ra1+ {[%clk 0:00:05]} 82. Ke2 {[%clk 0:00:21]}  f1=Q+ {[%clk 0:00:06]} 83. Ke3 {[%clk 0:00:22]}  Ra3+ {[%clk 0:00:06]} 84. Ke4 {[%clk 0:00:23]}  Qc4+ {[%clk 0:00:06]} 85. Ke5 {[%clk 0:00:24]}  Ra5+ {[%clk 0:00:06]} 86. Kd6 {[%clk 0:00:24]}  Qc5+ {[%clk 0:00:06]} 87. Kd7 {[%clk 0:00:24]}  Ra7+ {[%clk 0:00:06]} 88. Kd8 {[%clk 0:00:25]}  Qf8# {[%clk 0:00:06]} 0-1


[Site "https://www.chess.com"]

[Event "Titled Tuesday Blitz April 18 Early 2023"]
[White "Fajdetic, Hrvoje"]
[Black "Belov, Alexei"]
[WhiteFideId "14501945"]
[BlackFideId "4128206"]
[WhiteElo "2185"]
[BlackElo "2482"]
[Result "0-1"]
[Round "04"]
[TimeControl "180+2"]
[Date "2023.04.18"]
[WhiteClock "0:00:02"]
[BlackClock "0:00:58"]

1. d4 {[%clk 0:02:59]}  e6 {[%clk 0:03:00]} 2. Bf4 {[%clk 0:02:59]}  d5 {[%clk 0:02:59]} 3. e3 {[%clk 0:02:58]}  Bd6 {[%clk 0:02:59]} 4. Bg3 {[%clk 0:02:58]}  Ne7 {[%clk 0:02:59]} 5. Nf3 {[%clk 0:02:56]}  Bxg3 {[%clk 0:02:58]} 6. hxg3 {[%clk 0:02:55]}  b6 {[%clk 0:02:59]} 7. a4 {[%clk 0:02:42]}  Ba6 {[%clk 0:02:57]} 8. Bxa6 {[%clk 0:02:40]}  Nxa6 {[%clk 0:02:57]} 9. Qd3 {[%clk 0:02:40]}  Nb8 {[%clk 0:02:43]} 10. Rxh7 {[%clk 0:02:37]}  Rg8 {[%clk 0:02:36]} 11. a5 {[%clk 0:02:30]}  Nbc6 {[%clk 0:02:32]} 12. axb6 {[%clk 0:02:26]}  axb6 {[%clk 0:02:31]} 13. Rxa8 {[%clk 0:02:23]}  Qxa8 {[%clk 0:02:31]} 14. Qa3 {[%clk 0:02:23]}  Qb7 {[%clk 0:02:17]} 15. Nc3 {[%clk 0:02:20]}  f6 {[%clk 0:02:16]} 16. e4 {[%clk 0:01:42]}  dxe4 {[%clk 0:02:05]} 17. Nxe4 {[%clk 0:01:30]}  Nb4 {[%clk 0:01:51]} 18. Nxf6+ {[%clk 0:01:02]}  gxf6 {[%clk 0:01:50]} 19. Rxe7+ {[%clk 0:01:03]}  Kxe7 {[%clk 0:01:50]} 20. Qxb4+ {[%clk 0:01:03]}  Kf7 {[%clk 0:01:51]} 21. Qd2 {[%clk 0:00:26]}  Rh8 {[%clk 0:01:38]} 22. Ke2 {[%clk 0:00:21]}  Qe4+ {[%clk 0:01:35]} 23. Kf1 {[%clk 0:00:16]}  Rh1+ {[%clk 0:01:28]} 24. Ng1 {[%clk 0:00:16]}  Qc6 {[%clk 0:01:24]} 25. Qe2 {[%clk 0:00:09]}  Qa4 {[%clk 0:01:21]} 26. Qd1 {[%clk 0:00:04]}  Qc4+ {[%clk 0:01:16]} 27. Qd3 {[%clk 0:00:03]}  Qa4 {[%clk 0:01:01]} 28. Qd1 {[%clk 0:00:03]}  Qb5+ {[%clk 0:01:01]} 29. Qd3 {[%clk 0:00:03]}  Qxb2 {[%clk 0:01:01]} 30. Qd1 {[%clk 0:00:02]}  Qc3 {[%clk 0:00:58]} 0-1


[Site "https://www.chess.com"]

[Event "Titled Tuesday Blitz April 18 Early 2023"]
[White "Chernomordik, Pavel"]
[Black "Senft, Sean"]
[WhiteFideId "2804530"]
[BlackFideId "2044960"]
[WhiteElo "2193"]
[BlackElo "1989"]
[Result "1-0"]
[Round "04"]
[TimeControl "180+2"]
[Date "2023.04.18"]
[WhiteClock "0:00:16"]
[BlackClock "0:00:01"]

1. e4 {[%clk 0:03:00]}  e5 {[%clk 0:02:59]} 2. Nf3 {[%clk 0:03:00]}  Nc6 {[%clk 0:03:00]} 3. Bb5 {[%clk 0:03:00]}  Nf6 {[%clk 0:03:00]} 4. Qe2 {[%clk 0:02:59]}  d6 {[%clk 0:02:52]} 5. c3 {[%clk 0:02:58]}  Be7 {[%clk 0:02:50]} 6. h3 {[%clk 0:02:56]}  O-O {[%clk 0:02:51]} 7. O-O {[%clk 0:02:55]}  a6 {[%clk 0:02:44]} 8. Ba4 {[%clk 0:02:55]}  b5 {[%clk 0:02:45]} 9. Bc2 {[%clk 0:02:54]}  Bb7 {[%clk 0:02:45]} 10. a4 {[%clk 0:02:51]}  bxa4 {[%clk 0:02:36]} 11. Rxa4 {[%clk 0:02:49]}  Nb8 {[%clk 0:02:36]} 12. d4 {[%clk 0:02:45]}  Nbd7 {[%clk 0:02:36]} 13. Nbd2 {[%clk 0:02:32]}  c5 {[%clk 0:02:36]} 14. d5 {[%clk 0:02:28]}  a5 {[%clk 0:02:35]} 15. Bd3 {[%clk 0:02:25]}  Qc8 {[%clk 0:02:27]} 16. Nc4 {[%clk 0:02:21]}  Qc7 {[%clk 0:02:18]} 17. Bg5 {[%clk 0:02:17]}  h6 {[%clk 0:02:15]} 18. Bh4 {[%clk 0:02:15]}  Nb6 {[%clk 0:02:14]} 19. Rxa5 {[%clk 0:02:03]}  Rxa5 {[%clk 0:01:21]} 20. Nxa5 {[%clk 0:02:01]}  Nbxd5 {[%clk 0:01:12]} 21. exd5 {[%clk 0:01:59]}  Qxa5 {[%clk 0:01:12]} 22. c4 {[%clk 0:01:57]}  Re8 {[%clk 0:01:06]} 23. Nd2 {[%clk 0:01:45]}  Qb6 {[%clk 0:00:58]} 24. Rb1 {[%clk 0:01:41]}  Bc8 {[%clk 0:00:56]} 25. f3 {[%clk 0:01:37]}  Nh5 {[%clk 0:00:49]} 26. Bf2 {[%clk 0:01:31]}  Nf4 {[%clk 0:00:47]} 27. Qf1 {[%clk 0:01:29]}  g6 {[%clk 0:00:36]} 28. b4 {[%clk 0:01:23]}  Qc7 {[%clk 0:00:23]} 29. Bc2 {[%clk 0:01:16]}  cxb4 {[%clk 0:00:20]} 30. Rxb4 {[%clk 0:01:15]}  Qa5 {[%clk 0:00:20]} 31. Qb1 {[%clk 0:01:07]}  Bg5 {[%clk 0:00:17]} 32. Ne4 {[%clk 0:01:05]}  Be7 {[%clk 0:00:16]} 33. Ra4 {[%clk 0:00:58]}  Qd8 {[%clk 0:00:12]} 34. Bb6 {[%clk 0:00:53]}  Qd7 {[%clk 0:00:10]} 35. Ra7 {[%clk 0:00:52]}  Qf5 {[%clk 0:00:08]} 36. g4 {[%clk 0:00:46]}  Nxh3+ {[%clk 0:00:05]} 37. Kg2 {[%clk 0:00:46]}  Qf4 {[%clk 0:00:03]} 38. Qf1 {[%clk 0:00:19]}  Ng5 {[%clk 0:00:02]} 39. Ra3 {[%clk 0:00:18]}  Bxg4 {[%clk 0:00:01]} 40. Nxg5 {[%clk 0:00:16]} 1-0


[Site "https://www.chess.com"]

[Event "Titled Tuesday Blitz April 18 Early 2023"]
[White "Toncheva, Nadya"]
[Black "Jiganchine, Roman"]
[WhiteFideId "2924056"]
[BlackFideId "2603667"]
[WhiteElo "2101"]
[BlackElo "2278"]
[Result "1-0"]
[Round "04"]
[TimeControl "180+2"]
[Date "2023.04.18"]
[WhiteClock "0:00:08"]
[BlackClock "0:00:02"]

1. d4 {[%clk 0:03:00]}  d5 {[%clk 0:02:59]} 2. c4 {[%clk 0:03:00]}  e6 {[%clk 0:02:59]} 3. Nc3 {[%clk 0:02:59]}  Nf6 {[%clk 0:02:57]} 4. cxd5 {[%clk 0:02:59]}  Nxd5 {[%clk 0:02:57]} 5. Bd2 {[%clk 0:02:57]}  c5 {[%clk 0:02:52]} 6. e4 {[%clk 0:02:55]}  cxd4 {[%clk 0:02:46]} 7. Nxd5 {[%clk 0:02:31]}  exd5 {[%clk 0:02:45]} 8. e5 {[%clk 0:02:31]}  Nc6 {[%clk 0:02:42]} 9. Nf3 {[%clk 0:02:31]}  Bg4 {[%clk 0:02:41]} 10. Bb5 {[%clk 0:02:21]}  Qb6 {[%clk 0:02:36]} 11. a4 {[%clk 0:02:11]}  Be7 {[%clk 0:02:29]} 12. O-O {[%clk 0:02:09]}  O-O {[%clk 0:02:28]} 13. Re1 {[%clk 0:02:08]}  a6 {[%clk 0:02:22]} 14. Bd3 {[%clk 0:02:07]}  Nb4 {[%clk 0:01:55]} 15. Bb1 {[%clk 0:02:01]}  a5 {[%clk 0:01:41]} 16. h3 {[%clk 0:02:00]}  Bxf3 {[%clk 0:01:34]} 17. Qxf3 {[%clk 0:02:00]}  d3 {[%clk 0:01:33]} 18. Bxb4 {[%clk 0:01:54]}  Bxb4 {[%clk 0:01:33]} 19. Qxd3 {[%clk 0:01:46]}  g6 {[%clk 0:01:32]} 20. Re2 {[%clk 0:01:36]}  Rad8 {[%clk 0:01:31]} 21. Ba2 {[%clk 0:01:36]}  Qc5 {[%clk 0:01:19]} 22. Rd1 {[%clk 0:01:32]}  d4 {[%clk 0:01:06]} 23. h4 {[%clk 0:01:30]}  Kg7 {[%clk 0:01:06]} 24. h5 {[%clk 0:01:29]}  Rfe8 {[%clk 0:01:05]} 25. Qf3 {[%clk 0:01:12]}  Re7 {[%clk 0:00:58]} 26. Qf6+ {[%clk 0:01:10]}  Kh6 {[%clk 0:00:43]} 27. hxg6 {[%clk 0:00:56]}  hxg6 {[%clk 0:00:19]} 28. Re4 {[%clk 0:00:47]}  Rxe5 {[%clk 0:00:07]} 29. Rxe5 {[%clk 0:00:37]}  Qc2 {[%clk 0:00:06]} 30. Qf3 {[%clk 0:00:20]}  Bd6 {[%clk 0:00:03]} 31. Re4 {[%clk 0:00:18]}  f5 {[%clk 0:00:03]} 32. Rh4+ {[%clk 0:00:16]}  Kg5 {[%clk 0:00:02]} 33. Rhxd4 {[%clk 0:00:11]}  Rh8 {[%clk 0:00:02]} 34. Rxd6 {[%clk 0:00:08]}  b5 {[%clk 0:00:02]} 35. Bf7 {[%clk 0:00:08]} 1-0


[Site "https://www.chess.com"]

[Event "Titled Tuesday Blitz April 18 Early 2023"]
[White "Rom, Jasper"]
[Black "Blokhin, Sofia"]
[WhiteFideId "2023733"]
[BlackFideId "4508190"]
[WhiteElo "2233"]
[BlackElo "1994"]
[Result "1-0"]
[Round "04"]
[TimeControl "180+2"]
[Date "2023.04.18"]
[WhiteClock "0:01:44"]
[BlackClock "0:01:40"]

1. e4 {[%clk 0:02:59]}  c5 {[%clk 0:02:58]} 2. Nc3 {[%clk 0:02:58]}  e6 {[%clk 0:02:57]} 3. f4 {[%clk 0:02:58]}  a6 {[%clk 0:02:55]} 4. g3 {[%clk 0:02:57]}  Nc6 {[%clk 0:02:53]} 5. Bg2 {[%clk 0:02:57]}  g6 {[%clk 0:02:53]} 6. Nh3 {[%clk 0:02:57]}  Bg7 {[%clk 0:02:54]} 7. O-O {[%clk 0:02:50]}  Nge7 {[%clk 0:02:53]} 8. d3 {[%clk 0:02:50]}  O-O {[%clk 0:02:48]} 9. g4 {[%clk 0:02:47]}  d5 {[%clk 0:02:47]} 10. e5 {[%clk 0:02:41]}  d4 {[%clk 0:02:43]} 11. Ne4 {[%clk 0:02:40]}  Nd5 {[%clk 0:02:42]} 12. g5 {[%clk 0:02:39]}  b6 {[%clk 0:02:36]} 13. Nf6+ {[%clk 0:02:35]}  Bxf6 {[%clk 0:02:28]} 14. gxf6 {[%clk 0:02:33]}  Bb7 {[%clk 0:02:21]} 15. Qg4 {[%clk 0:02:32]}  Nxf6 {[%clk 0:02:19]} 16. exf6 {[%clk 0:02:29]}  Qxf6 {[%clk 0:02:19]} 17. Ng5 {[%clk 0:02:23]}  Qg7 {[%clk 0:02:01]} 18. Bd2 {[%clk 0:02:17]}  h6 {[%clk 0:01:59]} 19. Nxe6 {[%clk 0:01:49]}  fxe6 {[%clk 0:01:56]} 20. Bxc6 {[%clk 0:01:47]}  Bxc6 {[%clk 0:01:43]} 21. Qxe6+ {[%clk 0:01:46]}  Kh7 {[%clk 0:01:40]} 22. Qxc6 {[%clk 0:01:46]}  Rf6 {[%clk 0:01:40]} 23. Qxa8 {[%clk 0:01:44]} 1-0


[Site "https://www.chess.com"]

[Event "Titled Tuesday Blitz April 18 Early 2023"]
[White "babbilator"]
[Black "Coenen, Michael"]
[BlackFideId "4697367"]
[WhiteElo "2265"]
[BlackElo "2328"]
[Result "0-1"]
[Round "04"]
[TimeControl "180+2"]
[Date "2023.04.18"]
[WhiteClock "0:00:02"]
[BlackClock "0:00:23"]

1. e4 {[%clk 0:02:56]}  c5 {[%clk 0:02:59]} 2. Nc3 {[%clk 0:02:55]}  d6 {[%clk 0:02:59]} 3. Nf3 {[%clk 0:02:54]}  g6 {[%clk 0:02:58]} 4. d4 {[%clk 0:02:54]}  cxd4 {[%clk 0:02:58]} 5. Nxd4 {[%clk 0:02:54]}  Bg7 {[%clk 0:02:59]} 6. Be3 {[%clk 0:02:54]}  Nf6 {[%clk 0:02:59]} 7. f3 {[%clk 0:02:53]}  O-O {[%clk 0:02:59]} 8. Qd2 {[%clk 0:02:54]}  Nc6 {[%clk 0:02:59]} 9. O-O-O {[%clk 0:02:54]}  d5 {[%clk 0:02:59]} 10. exd5 {[%clk 0:02:54]}  Nxd5 {[%clk 0:02:59]} 11. Nxc6 {[%clk 0:02:54]}  bxc6 {[%clk 0:03:00]} 12. Bd4 {[%clk 0:02:55]}  e5 {[%clk 0:02:58]} 13. Bc5 {[%clk 0:02:55]}  Re8 {[%clk 0:02:58]} 14. Ne4 {[%clk 0:02:54]}  Be6 {[%clk 0:02:59]} 15. Bc4 {[%clk 0:02:51]}  h6 {[%clk 0:02:53]} 16. g4 {[%clk 0:02:35]}  Qc7 {[%clk 0:02:43]} 17. h4 {[%clk 0:02:14]}  Red8 {[%clk 0:02:39]} 18. Qe1 {[%clk 0:02:14]}  Nf4 {[%clk 0:02:31]} 19. Bxe6 {[%clk 0:02:08]}  Nxe6 {[%clk 0:02:32]} 20. Ba3 {[%clk 0:01:59]}  Rd5 {[%clk 0:02:26]} 21. h5 {[%clk 0:01:50]}  g5 {[%clk 0:02:25]} 22. Ng3 {[%clk 0:01:31]}  Rad8 {[%clk 0:01:59]} 23. Qe3 {[%clk 0:01:01]}  Nd4 {[%clk 0:01:42]} 24. c3 {[%clk 0:00:52]}  Nb5 {[%clk 0:01:42]} 25. Bc5 {[%clk 0:00:49]}  Qa5 {[%clk 0:01:38]} 26. a3 {[%clk 0:00:20]}  Qa4 {[%clk 0:01:37]} 27. Rxd5 {[%clk 0:00:14]}  cxd5 {[%clk 0:01:38]} 28. Nf5 {[%clk 0:00:14]}  d4 {[%clk 0:01:25]} 29. cxd4 {[%clk 0:00:15]}  Nxd4 {[%clk 0:01:25]} 30. Bxd4 {[%clk 0:00:15]}  exd4 {[%clk 0:01:22]} 31. Qd3 {[%clk 0:00:15]}  Qc6+ {[%clk 0:00:55]} 32. Kb1 {[%clk 0:00:14]}  Qd7 {[%clk 0:00:49]} 33. Rd1 {[%clk 0:00:14]}  Kf8 {[%clk 0:00:42]} 34. Ka1 {[%clk 0:00:13]}  Qd5 {[%clk 0:00:41]} 35. Kb1 {[%clk 0:00:13]}  Rd7 {[%clk 0:00:38]} 36. Ka1 {[%clk 0:00:13]}  Kg8 {[%clk 0:00:38]} 37. Kb1 {[%clk 0:00:13]}  Bf8 {[%clk 0:00:37]} 38. a4 {[%clk 0:00:12]}  Rb7 {[%clk 0:00:29]} 39. Rc1 {[%clk 0:00:11]}  Rb3 {[%clk 0:00:26]} 40. Qxd4 {[%clk 0:00:10]}  Qxd4 {[%clk 0:00:22]} 41. Nxd4 {[%clk 0:00:10]}  Rb4 {[%clk 0:00:23]} 42. b3 {[%clk 0:00:09]}  Bg7 {[%clk 0:00:21]} 43. Nc6 {[%clk 0:00:08]}  Rxb3+ {[%clk 0:00:21]} 44. Ka2 {[%clk 0:00:06]}  Rxf3 {[%clk 0:00:22]} 45. Ne7+ {[%clk 0:00:04]}  Kh7 {[%clk 0:00:20]} 46. Nf5 {[%clk 0:00:03]}  Rf4 {[%clk 0:00:21]} 47. Rc7 {[%clk 0:00:03]}  Kg8 {[%clk 0:00:19]} 48. Rc8+ {[%clk 0:00:03]}  Bf8 {[%clk 0:00:20]} 49. Ne7+ {[%clk 0:00:02]}  Kg7 {[%clk 0:00:20]} 50. Nf5+ {[%clk 0:00:03]}  Kg8 {[%clk 0:00:20]} 51. Ne7+ {[%clk 0:00:03]}  Kg7 {[%clk 0:00:21]} 52. Nf5+ {[%clk 0:00:03]}  Kf6 {[%clk 0:00:22]} 53. Rxf8 {[%clk 0:00:03]}  Rxa4+ {[%clk 0:00:23]} 54. Kb3 {[%clk 0:00:03]}  Rxg4 {[%clk 0:00:24]} 55. Rh8 {[%clk 0:00:02]}  Kxf5 {[%clk 0:00:23]} 0-1


[Site "https://www.chess.com"]

[Event "Titled Tuesday Blitz April 18 Early 2023"]
[White "Torres Hernandez, Leslie Carolin"]
[Black "Golubev, Mikhail"]
[WhiteFideId "8400504"]
[BlackFideId "14100983"]
[WhiteElo "1920"]
[BlackElo "2374"]
[Result "1-0"]
[Round "04"]
[TimeControl "180+2"]
[Date "2023.04.18"]
[WhiteClock "0:00:30"]
[BlackClock "0:00:06"]

1. e4 {[%clk 0:03:00]}  c5 {[%clk 0:02:58]} 2. Nf3 {[%clk 0:02:59]}  Nc6 {[%clk 0:02:57]} 3. Bb5 {[%clk 0:03:00]}  d6 {[%clk 0:02:56]} 4. O-O {[%clk 0:02:59]}  Bd7 {[%clk 0:02:56]} 5. c3 {[%clk 0:02:59]}  Nf6 {[%clk 0:02:54]} 6. d4 {[%clk 0:02:50]}  Nxe4 {[%clk 0:02:22]} 7. d5 {[%clk 0:02:50]}  Ne5 {[%clk 0:02:22]} 8. Nxe5 {[%clk 0:02:40]}  Bxb5 {[%clk 0:02:09]} 9. Re1 {[%clk 0:02:40]}  Nf6 {[%clk 0:01:47]} 10. Nf3 {[%clk 0:02:33]}  g6 {[%clk 0:01:42]} 11. Bg5 {[%clk 0:02:14]}  Bg7 {[%clk 0:01:40]} 12. b3 {[%clk 0:02:11]}  O-O {[%clk 0:01:37]} 13. c4 {[%clk 0:02:10]}  Bd7 {[%clk 0:01:37]} 14. Nbd2 {[%clk 0:02:08]}  h6 {[%clk 0:01:31]} 15. Bf4 {[%clk 0:02:07]}  Nh5 {[%clk 0:01:27]} 16. Be3 {[%clk 0:02:06]}  e5 {[%clk 0:01:08]} 17. dxe6 {[%clk 0:02:02]}  fxe6 {[%clk 0:01:08]} 18. Ne4 {[%clk 0:01:58]}  Bc6 {[%clk 0:01:07]} 19. Qxd6 {[%clk 0:01:54]}  Qxd6 {[%clk 0:00:57]} 20. Nxd6 {[%clk 0:01:54]}  Bxa1 {[%clk 0:00:56]} 21. Rxa1 {[%clk 0:01:54]}  Bxf3 {[%clk 0:00:53]} 22. gxf3 {[%clk 0:01:55]}  b6 {[%clk 0:00:44]} 23. Bxh6 {[%clk 0:01:51]}  Rxf3 {[%clk 0:00:43]} 24. Re1 {[%clk 0:01:49]}  Kh7 {[%clk 0:00:18]} 25. Bg5 {[%clk 0:01:43]}  Nf4 {[%clk 0:00:18]} 26. Bxf4 {[%clk 0:01:42]}  Rxf4 {[%clk 0:00:18]} 27. Rxe6 {[%clk 0:01:38]}  Raf8 {[%clk 0:00:17]} 28. Re7+ {[%clk 0:01:37]}  Kh6 {[%clk 0:00:17]} 29. Ne4 {[%clk 0:01:38]}  R8f7 {[%clk 0:00:16]} 30. Re8 {[%clk 0:01:36]}  Rf3 {[%clk 0:00:14]} 31. h4 {[%clk 0:01:23]}  R7f4 {[%clk 0:00:12]} 32. Kg2 {[%clk 0:01:22]}  Rd3 {[%clk 0:00:11]} 33. Kf1 {[%clk 0:00:49]}  Kg7 {[%clk 0:00:10]} 34. Re7+ {[%clk 0:00:46]}  Kf8 {[%clk 0:00:09]} 35. Re6 {[%clk 0:00:45]}  Rxh4 {[%clk 0:00:09]} 36. Ng5 {[%clk 0:00:36]}  Rg4 {[%clk 0:00:07]} 37. Rxg6 {[%clk 0:00:33]}  Rd1+ {[%clk 0:00:06]} 38. Ke2 {[%clk 0:00:32]}  Rh4 {[%clk 0:00:06]} 39. Kxd1 {[%clk 0:00:30]} 1-0


[Site "https://www.chess.com"]